{"text_format":"1","workbook":"xlsx","n_sheets":3,"sheets":["Hinweise","Umzugsgutliste Seite 1","Umzugsgutliste Seite 2"],"not_rendered":{"charts":0,"images":17,"macros":1,"external_links":0,"defined_names":2,"comments":2,"pivot_tables":0},"unopened":[],"bounds":{"document_bytes":16777216,"sheet_cells":100000,"rows_first":2000,"rows_last":500,"rows_between":2000,"halvings":0,"cell_chars":16384,"cell_head_chars":4096},"cells_cut":0,"cells_raw":0,"read":"whole","date_system":"1900"}

{"sheet":"Hinweise","index":0,"n_rows":52,"n_cols":5,"rows_kept":52,"cut":false,"hidden":false,"merged":[[16,0,17,0],[18,0,18,8],[15,1,15,8],[49,1,50,8],[23,1,23,8],[19,1,21,8],[25,1,25,8],[27,1,27,8],[29,1,30,8],[39,3,39,7],[41,3,41,7],[13,1,13,2],[13,4,13,7],[14,1,14,7],[16,1,17,8],[40,3,40,7],[37,1,37,7],[34,2,34,8],[35,2,35,8]]}
[null,"Hinweise zur Umzugsgutliste"]
[]
[null,"Sehr geehrte Kundin, sehr geehrte Kunde!"]
[]
[]
[null,"um Ihre Anfrage schnellstmöglich beantworten zu können,"]
[null,"benötigen wir noch einige Angaben. Wir möchten Sie daher"]
[null,"bitten, sich ein paar Minuten Zeit zu nehmen und die nachfolgende"]
[null,"Umzugsgutliste auszufüllen. Diese besteht aus zwei Tabellenblättern"]
[null,"(Seite 1 und 2), die Sie unten anklicken können."]
[]
[null,"Hinweise zum Ausfüllen"]
[]
["n","Bitte füllen Sie nur die ",null,"orange","gefärbten Felder aus. "]
["n","Bei Möbelstücken, die mit einem Kommentar versehen sind, wählen Sie bitte zusätzlich die entsprechende Raumeinheit aus."]
["n","Bei einigen Möbelstücken (z.B. Regale oder Sofa) werden zusätzlich Maße (z.B. Meter oder Sitze) abgefragt."]
["n","Weitere Informationen (z.B., enges Treppenhaus oder Nebenleistungen) können Sie\ndurch Ankreuzen markieren."]
[]
[]
[null,"Die Umzugsgutliste berechnet automatisch das Umzugsvolumen.\n\nBitte schicken Sie diese Datei per E-Mail-Anhang an:"]
[]
[]
[]
[null,"service@meyers-miet-mich.de"]
[]
[null,"oder faxen Sie die Umzugsgutliste an:"]
[]
[null,"0551-300054"]
[]
[null,"Wir bedanken uns bereits im Voraus für Ihre Bemühungen. Bei Rückfragen stehen wir Ihnen gerne zur Verfügung."]
[]
[]
[null,"Ihr Meyer's Miet-Mich-Team"]
[]
[null,"in Göttingen:","Hannoversche Strasse 64 A, 37075 Göttingen, Tel.: 0551-300013"]
[null,"in Kassel:","Philippistraße 36, 34127 Kassel, Tel.: 0561-5799770"]
[]
[null,"Kurzinfo"]
[]
[null,"Umzugsanfrage von:",null,{"$f":"'Umzugsgutliste Seite 1'!C4","v":0}]
[null,"Beladeadresse:",null,{"$f":"'Umzugsgutliste Seite 1'!C5","v":0}]
[null,"Entladeadresse:",null,{"$f":"'Umzugsgutliste Seite 1'!C6","v":0}]
[null,"Umzugsvolumen:",null,{"$f":"'Umzugsgutliste Seite 2'!K41","v":0},"cbm"]
[null,"Umzugstermin:",null,{"$f":"'Umzugsgutliste Seite 1'!C7","v":"00:00:00"}]
[null,"Umzugsmaterialien:",null,{"$f":"SUM('Umzugsgutliste Seite 1'!A48,'Umzugsgutliste Seite 1'!A60,'Umzugsgutliste Seite 1'!H26,'Umzugsgutliste Seite 1'!H42,'Umzugsgutliste Seite 1'!H60,'Umzugsgutliste Seite 2'!A23,'Umzugsgutliste Seite 2'!A44,'Umzugsgutliste Seite 2'!G15,'Umzugsgutliste Seite 2'!G32)","v":0},"Umzugskartons, 80 l"]
[null,null,null,{"$f":"SUM('Umzugsgutliste Seite 1'!A50,'Umzugsgutliste Seite 1'!A61,'Umzugsgutliste Seite 1'!H28,'Umzugsgutliste Seite 1'!H43)","v":0},"Bücherkartons"]
[null,null,null,{"$f":"SUM('Umzugsgutliste Seite 1'!A49,'Umzugsgutliste Seite 1'!H27,'Umzugsgutliste Seite 2'!A45)","v":0},"Porzellankartons"]
[null,null,null,{"$f":"SUM('Umzugsgutliste Seite 1'!H61,'Umzugsgutliste Seite 2'!A22)","v":0},"Kleiderbehältnisse"]
[]
[null,"Wir haben diese Umzugsgutliste nach besten Gewissen erstellt. Dennoch übernehmen wir keine Haftung bzw. Verantwortung für Richtigkeit, Aktualität und Vollständigkeit."]
[]
[null,"© Meyer´s Miet-Mich GmbH, Göttingen & Kassel"]

{"sheet":"Umzugsgutliste Seite 1","index":1,"n_rows":62,"n_cols":18,"rows_kept":62,"cut":false,"hidden":false,"merged":[[39,1,39,4],[40,1,40,4],[33,1,33,2],[34,1,34,4],[35,1,35,4],[42,1,42,2],[41,1,41,4],[46,1,46,4],[45,1,45,4],[36,1,36,4],[37,1,37,4],[38,1,38,4],[28,1,28,4],[29,1,29,4],[30,1,30,4],[31,1,31,4],[32,1,32,2],[18,1,18,4],[23,1,23,4],[24,1,24,4],[25,1,25,4],[26,1,26,4],[19,1,19,4],[20,1,20,4],[21,1,21,4],[22,1,22,4],[2,0,2,6],[3,2,3,6],[4,2,4,6],[5,2,5,6],[6,2,6,6],[7,2,7,6],[15,1,15,4],[16,1,16,2],[17,1,17,4],[11,1,11,2],[12,1,12,2],[13,1,13,4],[14,1,14,4],[8,2,8,6],[9,1,9,4],[10,1,10,4],[8,12,8,13],[9,8,9,11],[10,8,10,12],[8,9,8,11],[6,12,6,13],[7,12,7,13],[6,9,6,11],[7,9,7,11],[2,12,2,13],[2,9,2,11],[3,7,3,8],[5,12,5,13],[3,9,3,10],[4,9,4,10],[5,9,5,11],[61,8,61,12],[54,1,54,4],[60,1,60,4],[58,8,58,11],[51,1,51,4],[52,1,52,4],[53,1,53,4],[47,1,47,4],[59,8,59,11],[58,1,58,4],[59,1,59,4],[56,8,56,11],[48,8,48,11],[49,8,49,11],[50,8,50,11],[51,8,51,11],[52,8,52,11],[54,8,54,11],[55,8,55,11],[57,8,57,11],[47,8,47,11],[11,8,11,11],[12,8,12,11],[13,8,13,11],[14,8,14,11],[61,1,61,5],[53,8,53,9],[55,1,55,4],[56,1,56,4],[57,1,57,4],[60,8,60,11],[19,8,19,11],[20,8,20,11],[21,8,21,11],[22,8,22,11],[15,8,15,9],[16,8,16,11],[17,8,17,11],[18,8,18,11],[29,8,29,9],[30,8,30,11],[31,8,31,9],[28,8,28,11],[23,8,23,11],[24,8,24,11],[40,8,40,11],[50,1,50,4],[49,1,49,4],[43,1,43,4],[44,1,44,4],[25,8,25,11],[26,8,26,11],[27,8,27,11],[36,8,36,11],[37,8,37,11],[38,8,38,11],[39,8,39,11],[32,8,32,11],[33,8,33,11],[34,8,34,11],[35,8,35,11],[48,1,48,4],[45,8,45,11],[41,8,41,11],[42,8,42,11],[43,8,43,11],[44,8,44,11],[46,8,46,11],[27,1,27,4]]}
["Umzugsgutliste"]
[]
["1 RE (Raumeinheit) = 0,1 cbm",null,null,null,null,null,null,"Hinweise:",null,"Beladestelle:",null,null,"Entladestelle:"]
["Name des Kunden:",null,null,null,null,null,null,"Etage:"]
["Beladeadresse",null,null,null,null,null,null,"Abtrageweg:",null,null,null,"m",null,"m"]
["Entladeadresse:",null,null,null,null,null,null,"enges Treppenhaus"]
["Umzugstermin:",null,null,null,null,null,null,"Schrägaufzug einsetzbar"]
["Telefonnummer:",null,null,null,null,null,null,"Fahrstuhl vorhanden"]
["E-Mail-Adresse:",null,null,null,null,null,null,"Halteverbotszone einrichten"]
["Stück","Gegenstand",null,null,null,"RE","Gesamt RE","Stück","Gegenstand",null,null,null,"RE","Gesamt RE"]
[null,"Wohnzimmer",null,null,null,null,null,null,"Übertrag:",null,null,null,null,{"$f":"G62","v":0}]
[null,"Anbauwand b. 38cm Tiefe              ",null,null,"m",8,{"$f":"A12*F12*D12","v":0},null,"Esszimmer"]
[null,"Anbauwand ü. 38cm Tiefe         ",null,null,"m",10,{"$f":"A13*F13*D13","v":0},null,"Brücke",null,null,null,1,{"$f":"H13*M13","v":0}]
[null,"Bilder über 0,8 m",null,null,null,2,{"$f":"A14*F14","v":0},null,"Buffet, ohne Aufsatz",null,null,null,15,{"$f":"H14*M14","v":0},null,null,"Nicht ändern!"]
[null,"Brücke",null,null,null,1,0,null,"Deckenlampe",null,null,null,2,0,null,3,8,8]
[null,"Buffet, mit Aufsatz",null,null,null,18,0,null,"Eckbank         ",null,null,"Sitze",2,{"$f":"H16*M16*K16","v":0},null,4,9,15]
[null,"Bücherregal, zerlegbar            ",null,null,"m",4,{"$f":"A17*F17*D17","v":0},null,"Hausbar",null,null,null,5,0,null,null,10]
[null,"Deckenlampe",null,null,null,2,0,null,"Sideboard",null,null,null,12,0,null,12,11,12]
[null,"Fernseher",null,null,null,3,0,null,"Stuhl o. Armlehnen (2) / m. Armlehnen (3)",null,null,null,null,0,null,13,12,17]
[null,"Fernsehtisch/-schränkchen",null,null,null,3,0,null,"Teppich",null,null,null,3,0,null,14,13]
[null,"Flügel",null,null,null,20,0,null,"Tisch, bis 0,6 (4) / b. 1,0 (5)",null,null,null,null,0,null,15,14]
[null,"Heimorgel",null,null,null,10,0,null,"Tisch, bis 1,2 (6) / ü. 1,2 m (8)",null,null,null,null,0,null,16,15]
[null,"Klavier",null,null,null,15,0,null,"Vitrine (Glasschrank)",null,null,null,10,0,null,17]
[null,"Lüster",null,null,null,5,0,null,null,null,null,null,null,0,null,null,8]
[null,"Musikschrank/Turm",null,null,null,4,0,null,null,null,null,null,null,0,null,2,4]
[null,"Nähmaschine (Schrank)",null,null,null,4,0,null,"Umzugskarton, bis 80 l",null,null,null,1,0,null,3]
[null,"Pflanze 0,70 (3) - 1,50 m (4)",null,null,null,null,0,null,"Porzellankarton (auf Wunsch)",null,null,null,1.5,0,null,null,4]
[null,"Pflanze b. 1,50 (8) / ü. 2,50 m (15)",null,null,null,null,0,null,"Bücherkarton (auf Wunsch)",null,null,null,1.5,0,null,4,5]
[null,"Schreibtisch, b. 1,6 (12) / ü. 1,6 m (17)",null,null,null,null,0,null,"Arbeitszimmer",null,null,null,null,null,null,8,6]
[null,"Sekretär",null,null,null,12,0,null,"Aktenschrank     ",null,null,"m",8,{"$f":"H30*M30*K30","v":0},null,null,8]
[null,"Sessel, mit Armlehnen (8) / ohne (4)",null,null,null,null,0,null,"Brücke",null,null,null,1,0,null,10]
[null,"Sideboard",null,null,null,12,0,null,"Bücherregal, zerlegb.       ",null,null,"m",4,{"$f":"H32*M32*K32","v":0},null,15,6]
[null,"Sitzlandschaft (Element)                ",null,null,"Sitze",4,{"$f":"A33*F33*D33","v":0},null,"Deckenlampe",null,null,null,2,0,null,null,7]
[null,"Sofa, Couch, Liege                 ",null,null,"Sitze",4,{"$f":"A34*F34*D34","v":0},null,"EDV-Anlage",null,null,null,6,0]
[null,"Standuhr",null,null,null,4,0,null,"Schreibtisch, über 1,6 m",null,null,null,17,0]
[null,"Stehlampe",null,null,null,2,0,null,"Schreibtischstuhl",null,null,null,3,0]
[null,"Stereoanlage",null,null,null,4,0,null,"Sessel, m. Armlehnen (8) / o. (4)",null,null,null,null,0]
[null,"Stuhl o. Armlehnen (2) / m. Armlehnen (3)",null,null,null,null,0,null,"Stehlampe",null,null,null,2,0]
[null,"Teppich",null,null,null,3,0,null,"Teppich",null,null,null,3,0]
[null,"Tisch, bis 0,6 (4) / b. 1,0 (5)",null,null,null,null,0,null,"Tisch, bis 0,6 (4) / b. 1,0 (5)",null,null,null,null,0]
[null,"Tisch, bis 1,2 (6) / ü. 1,2 m (8)",null,null,null,null,0,null,"Tisch, bis 1,2 (6) / ü. 1,2 m (8)",null,null,null,null,0]
[null,"Videogerät",null,null,null,2,0,null,"Umzugskarton, bis 80 l",null,null,null,1,0]
[null,"Wohnz.schrank, zerlegbar                ",null,null,"m",8,{"$f":"A43*F43*D43","v":0},null,"Bücherkarton (auf Wunsch)",null,null,null,1.5,0]
[null,null,null,null,null,null,0,null,"Schlafzimmer"]
[null,null,null,null,null,null,0,null,"Bettumbau",null,null,null,3,0]
[null,null,null,null,null,null,0,null,"Bettzeug, je Betteinheit",null,null,null,3,0]
[null,null,null,null,null,null,0,null,"Deckenlampe",null,null,null,2,0]
[null,"Umzugskarton, bis 80 l",null,null,null,1,0,null,"Doppelbett, komplett",null,null,null,20,0]
[null,"Porzellankarton (auf Wunsch)",null,null,null,1.5,0,null,"Einzelbett, kompl. (10) / franz. Bett (15)",null,null,null,null,0]
[null,"Bücherkarton (auf Wunsch)",null,null,null,1.5,0,null,"Fernseher",null,null,null,3,0]
[null,"Diele / Bad",null,null,null,null,null,null,"Kommode (6) / mit Spiegel (7)",null,null,null,null,0]
[null,"Deckenlampe",null,null,null,2,0,null,"Nachttisch",null,null,null,2,0]
[null,"Garderobe / Hut-, Kleiderablage",null,null,null,2,0,null,"Schrank, bis 2 Türen, nicht zerlegbar",null,null,null,15,0]
[null,"Kommode / Truhe",null,null,null,7,0,null,"Schrank, zerlegbar             ",null,null,"m",8,{"$f":"H54*M54*K54","v":0}]
[null,"Schuhschrank",null,null,null,4,0,null,"Spiegel, über 0,8 m",null,null,null,1,0]
[null,"Stuhl, Hocker",null,null,null,2,0,null,"Stuhl, Hocker",null,null,null,2,0]
[null,"Toilettenschrank",null,null,null,2,0,null,"Wäschetruhe",null,null,null,3,0]
[null,"Wäscheschrank",null,null,null,2,0,null,null,null,null,null,null,0]
[null,null,null,null,null,null,0,null,null,null,null,null,null,0]
[null,"Umzugskarton, bis 80 l",null,null,null,1,0,null,"Umzugskarton, bis 80 l",null,null,null,1,0]
[null,"Bücherkarton (auf Wunsch)",null,null,null,1.5,0,null,"Kleiderbehältnis ",null,null,null,6,0]
[null,"Übertrag:",null,null,null,null,{"$f":"SUM(G12:G61)","v":0},null,"Übertrag:",null,null,null,null,{"$f":"SUM(N11:N61)","v":0}]

{"sheet":"Umzugsgutliste Seite 2","index":2,"n_rows":68,"n_cols":14,"rows_kept":68,"cut":false,"hidden":false,"merged":[[60,1,60,5],[61,1,61,5],[45,10,45,11],[46,10,46,11],[59,6,59,11],[60,6,60,11],[61,6,61,11],[51,10,51,11],[52,10,52,11],[46,8,46,9],[59,1,59,5],[58,8,58,11],[58,6,58,7],[45,8,45,9],[40,8,40,9],[41,8,41,9],[40,10,41,10],[34,7,34,9],[35,7,35,9],[36,7,36,9],[55,10,55,11],[56,10,56,11],[51,8,51,9],[52,8,52,9],[53,8,53,9],[55,8,55,9],[54,8,54,9],[53,10,53,11],[54,10,54,11],[43,8,43,11],[44,8,44,9],[44,10,44,11],[48,6,48,7],[56,8,56,9],[49,10,49,11],[50,10,50,11],[40,11,41,11],[37,7,37,9],[44,1,44,3],[40,1,40,3],[43,1,43,3],[38,1,38,3],[35,1,35,3],[36,1,36,3],[37,1,37,3],[27,1,27,3],[28,1,28,3],[29,1,29,3],[30,1,30,3],[32,7,32,9],[31,7,31,9],[33,7,33,9],[26,1,26,3],[23,1,23,3],[14,1,14,3],[15,1,15,3],[16,1,16,3],[17,1,17,3],[18,1,18,3],[23,7,23,9],[33,1,33,3],[25,7,25,9],[26,7,26,9],[27,7,27,9],[29,7,29,9],[30,7,30,9],[0,7,0,9],[6,7,6,9],[7,7,7,9],[8,7,8,9],[3,7,3,9],[4,7,4,9],[12,7,12,9],[20,7,20,9],[0,1,0,3],[1,1,1,4],[2,7,2,9],[9,1,9,3],[10,1,10,3],[11,1,11,3],[9,7,9,9],[10,7,10,9],[17,7,17,9],[18,7,18,9],[14,7,14,9],[19,7,19,9],[13,7,13,9],[16,7,16,9],[11,7,11,9],[2,1,2,3],[13,1,13,3],[4,1,4,3],[5,1,5,3],[6,1,6,3],[7,1,7,3],[8,1,8,3],[19,1,19,3],[66,7,66,9],[28,7,28,9],[15,7,15,9],[65,4,65,6],[45,1,45,4],[46,1,46,3],[47,0,47,3],[49,8,49,9],[48,8,48,11],[50,8,50,9],[31,1,31,3],[32,1,32,3],[20,1,20,3],[21,1,21,3],[22,1,22,3],[25,1,25,3],[22,7,22,9]]}
["Stück","Gegenstand",null,null,"RE","Gesamt RE","Stück","Gegenstand",null,null,"RE","Gesamt RE"]
[null,"Übertrag:",null,null,null,{"$f":"'Umzugsgutliste Seite 1'!N62","v":0},null,null,null,null,"Übertrag:",{"$f":"F46","v":0}]
[null,"Kinderzimmer",null,null,null,null,null,"Keller / Speicher"]
[null,"Anbauwand, b. 38 (8) / ü.38cm T. (10)  ",null,"m",null,{"$f":"A4*E4*C4","v":0},null,"Kinderwagen",null,null,5,{"$f":"G4*K4","v":0}]
[null,"Bett, komplett",null,null,10,{"$f":"A5*E5","v":0},null,"Koffer",null,null,1,{"$f":"G5*K5","v":0}]
[null,"Bettzeug, je Betteinheit",null,null,3,0,null,"Regal, zerlegbar                  ",null,"m",4,{"$f":"G6*K6*I6","v":0}]
[null,"Deckenlampe",null,null,2,0,null,"Schlitten",null,null,2,0]
[null,"Etagenbett, komplett",null,null,16,0,null,"Ski",null,null,2,0,null,"Nicht ändern!"]
[null,"Kinderbett, komplett",null,null,5,0,null,"Werkbank, zerlegbar",null,null,4,0,8,4]
[null,"Laufgitter",null,null,1,0,null,"Werkzeugschrank",null,null,2,0,10,5]
[null,"Nachttisch",null,null,2,0,null,"Werkzeugkoffer",null,null,1,0,null,8]
[null,"Schrank, bis 2 Türen, nicht zerlegbar",null,null,15,0,null,null,null,null,null,0,3]
[null,"Schrank, zerlegbar                 ",null,"m",8,{"$f":"A13*E13*C13","v":0},null,null,null,null,null,0,1,5]
[null,"Schreibpult",null,null,7,0,null,null,null,null,null,0,null,10]
[null,"Spielzeugkiste",null,null,4,0,null,"Umzugskarton, bis 80 l",null,null,1,0,4]
[null,"Stuhl / Hocker",null,null,2,0,null,"Garage / Garten / Balkon",null,null,null,null,5,2]
[null,"Teppich (3) / Brücke (1)",null,null,null,0,null,"Autoreifen",null,null,1,0,6,5]
[null,"Tisch, bis 0,6 (4) / bis 1,0 (5) / ü. 1,0 m (8)",null,null,null,0,null,"Blumenkübel / Kasten",null,null,1,0,8]
[null,null,null,null,null,0,null,"Dreirad / Kinderrad",null,null,2,0]
[null,null,null,null,null,0,null,"Fahrrad / Moped",null,null,5,0]
[null,null,null,null,null,0,null,"Klapptisch / Klappstuhl",null,null,2,0]
[null,"Kleiderbehältnis",null,null,6,0,null,"Leiter                 ",null,"m",1,{"$f":"G22*K22*I22","v":0}]
[null,"Umzugskarton, bis 80 l",null,null,1,0,null,"Mülltonne",null,null,2,0]
[null,"Küche",null,null,null,null,null,"Rasenmäher, Hand (2) / Motor (5)",null,null,null,{"$f":"G24*3","v":0}]
[null,"Arbeitsplatte, nicht unterb.      ",null,"m",1,{"$f":"A25*E25*C25","v":0},null,"Regal, zerlegbar             ",null,"m",4,{"$f":"G25*K25*I25","v":0}]
[null,"Besenschrank",null,null,6,0,null,"Schubkarre",null,null,4,0]
[null,"Buffet, mit Aufsätzen",null,null,18,0,null,"Sonnenschirm",null,null,2,0]
[null,"Bügelbrett",null,null,1,0,null,"Tischtennisplatte",null,null,3,0]
[null,"Deckenlampe",null,null,2,0,null,null,null,null,null,0]
[null,"Eckbank, je Sitz",null,null,2,0,null,null,null,null,null,0]
[null,"Geschirrspülmaschine",null,null,5,0,null,null,null,null,null,0]
[null,"Herd",null,null,5,0,null,"Umzugskarton, bis 80 l",null,null,1,0]
[null,"Kühlschrank / Truhe, b. 120 l (5) / ü. 120 l (10)",null,null,null,0,null,"Sonstiges"]
[null,"Mikrowelle",null,null,2,0,null,null,null,null,null,0]
[null,"Regal, zerlegbar               ",null,"m",4,{"$f":"A35*E35*C35","v":0},null,null,null,null,null,0]
[null,"Staubsauger",null,null,1,0,null,null,null,null,null,0]
[null,"Stuhl",null,null,2,0,null,null,null,null,null,0]
[null,"Tisch, b. 0,6 (4) / b. 1,0 m (5)",null,null,null,0,null,null,null,null,null,0]
[null,"Tisch, b. 1,2 (6) / ü. 1,2 m (8)",null,null,null,{"$f":"A39*E39","v":0},null,null,null,null,"Gesamtsumme RE:",{"$f":"SUM(L2:L38)","v":0}]
[null,"Unter-/Oberschrank           ",null,"Türen",4,{"$f":"A40*E40*C40","v":0}]
[null,"Waschmaschine / Trockner",null,null,5,{"$f":"A41*E41","v":0},null,"Gesamt RE",{"$f":"L39","v":0},null,{"$f":"L39/10","v":0},"cbm"]
[null,null,null,null,null,null,null,null,10]
[]
[null,"Umzugskarton, bis 80 l",null,null,1,{"$f":"A44*E44","v":0},"Einpacken",null,"Auspacken"]
[null,"Porzellankarton (auf Wunsch)",null,null,1.5,{"$f":"A45*E45","v":0},null,"durch Kunde",null,null,"durch Kunde"]
[null,"Übertrag:",null,null,null,{"$f":"SUM(F2:F45)","v":0},null,"Zerbrechl. durch uns",null,null,"Zerbrechl. durch uns"]
[null,null,null,null,null,null,null,"Komplett durch uns",null,null,"Komplett durch uns"]
["Montagearbeiten",null,null,null,"Abbau","Aufbau"]
[null,"m Schrank         ",null,"Türen",null,null,"Elektriker / Installateur",null,"Dübelarbeiten"]
[null,"m Schrankwand",null,null,null,null,null,"E-Herd",null,null,"Regale"]
[null,"m Stollenwand",null,null,null,null,null,"Spülmaschine",null,null,"Bilder"]
[null,"m Wohnzimmerschrank",null,null,null,null,null,"Waschmaschine",null,null,"Hängeschränke"]
[null,"m Schiebetürenschrank",null,null,null,null,null,"Spüle",null,null,"Garderobe"]
[null,"m Regale",null,null,null,null,null,"Lampen",null,null,"Gardinenleiste"]
[null,"m Küchenzeile"]
[null,"m Arbeitsplatte ändern"]
[]
[]
["Kostenübernahme erfolgt durch",null,null,null,null,null,"Besonderheiten:"]
[null,"Kunde"]
[null,"Arbeitgeber"]
[null,"Behörde"]
[]
[]
[]
[]
[null,"Auftraggeber",null,null,"Auftragnehmer",null,null,"Ort/Datum"]
["© Meyer´s Miet-Mich GmbH, Göttingen & Kassel"]